[Event "Early-Titled-Tuesday-Blitz-September-12-2023"]
[Site "Chess.com"]
[Date "2023.09.12"]
[Round "4"]
[White "Young_Catalan_Player09"]
[Black "Rurep26"]
[Result "1-0"]
[WhiteElo "2449"]
[BlackElo "2783"]
[TimeControl "180+1"]
[EndTime "8:37:16 PDT"]
[Termination "Young_Catalan_Player09 won by resignation"]

1. Nf3 {[%clk 0:03:00.9]} 1... d5 {[%clk 0:02:59.9]} 2. d4 {[%clk 0:03:00.5]}
2... c6 {[%clk 0:03:00.8]} 3. c4 {[%clk 0:03:00.6]} 3... Nf6 {[%clk 0:03:00.7]}
4. Nc3 {[%clk 0:03:00.3]} 4... g6 {[%clk 0:02:46.9]} 5. cxd5 {[%clk 0:02:54.6]}
5... cxd5 {[%clk 0:02:47.8]} 6. g3 {[%clk 0:02:54.8]} 6... Bg7 {[%clk
0:02:42.6]} 7. Bg2 {[%clk 0:02:54.7]} 7... O-O {[%clk 0:02:42]} 8. O-O {[%clk
0:02:55.3]} 8... Nc6 {[%clk 0:02:42.3]} 9. Ne5 {[%clk 0:02:55.4]} 9... e6 {[%clk
0:02:33.4]} 10. Nxc6 {[%clk 0:02:54.5]} 10... bxc6 {[%clk 0:02:34.3]} 11. Bf4
{[%clk 0:02:54.2]} 11... Nd7 {[%clk 0:02:28]} 12. Rc1 {[%clk 0:02:46.8]} 12...
Ba6 {[%clk 0:02:21.1]} 13. Qd2 {[%clk 0:02:41.7]} 13... e5 {[%clk 0:02:13.5]}
14. dxe5 {[%clk 0:02:33.6]} 14... Nxe5 {[%clk 0:02:14.4]} 15. b3 {[%clk
0:02:30.7]} 15... Re8 {[%clk 0:02:06.8]} 16. Rfd1 {[%clk 0:02:27.2]} 16... Rc8
{[%clk 0:01:48.6]} 17. Na4 {[%clk 0:02:25.9]} 17... Nd7 {[%clk 0:01:31]} 18. e3
{[%clk 0:02:01.6]} 18... Qe7 {[%clk 0:01:24.5]} 19. Qa5 {[%clk 0:01:43.8]} 19...
Bb5 {[%clk 0:01:24.1]} 20. Qxa7 {[%clk 0:01:43]} 20... g5 {[%clk 0:01:13.8]} 21.
Bxg5 {[%clk 0:01:41.1]} 21... Qxg5 {[%clk 0:00:55.5]} 22. Qxd7 {[%clk
0:01:40.2]} 22... Rcd8 {[%clk 0:00:53.8]} 23. Qa7 {[%clk 0:01:33.4]} 23... Rd6
{[%clk 0:00:35.2]} 24. Nc3 {[%clk 0:01:27.5]} 24... Bxc3 {[%clk 0:00:20.4]} 25.
Rxc3 {[%clk 0:01:26.9]} 25... Rh6 {[%clk 0:00:20.4]} 26. Qd4 {[%clk 0:01:24.5]}
26... Ree6 {[%clk 0:00:18.5]} 27. a4 {[%clk 0:01:22.9]} 27... Be2 {[%clk
0:00:18.5]} 28. Re1 {[%clk 0:01:21.5]} 28... Bg4 {[%clk 0:00:19.1]} 29. a5
{[%clk 0:01:19.1]} 29... Ref6 {[%clk 0:00:18.4]} 30. a6 {[%clk 0:01:16.7]} 30...
Qh5 {[%clk 0:00:16.9]} 31. h4 {[%clk 0:01:15.8]} 31... Qf5 {[%clk 0:00:17.4]}
32. Qf4 {[%clk 0:01:04.6]} 32... Qc8 {[%clk 0:00:17.6]} 33. Qa4 {[%clk
0:01:02.1]} 33... Qa8 {[%clk 0:00:17]} 34. Qxg4+ {[%clk 0:00:58]} 1-0

[Event "Early-Titled-Tuesday-Blitz-September-12-2023"]
[Site "Chess.com"]
[Date "2023.09.12"]
[Round "4"]
[White "Durarbayli"]
[Black "juancruzarias"]
[Result "1-0"]
[WhiteElo "2897"]
[BlackElo "2660"]
[TimeControl "180+1"]
[EndTime "8:37:20 PDT"]
[Termination "Durarbayli won on time"]

1. e4 {[%clk 0:03:00.9]} 1... c6 {[%clk 0:02:59.6]} 2. d4 {[%clk 0:03:00.6]}
2... d5 {[%clk 0:02:59.9]} 3. exd5 {[%clk 0:03:01.5]} 3... cxd5 {[%clk 0:03:00]}
4. c4 {[%clk 0:03:02]} 4... Nf6 {[%clk 0:02:58.7]} 5. Nc3 {[%clk 0:03:02.5]}
5... Nc6 {[%clk 0:02:56.6]} 6. Nf3 {[%clk 0:03:03.2]} 6... a6 {[%clk 0:02:56.5]}
7. Be3 {[%clk 0:02:58.8]} 7... Bg4 {[%clk 0:02:48.9]} 8. cxd5 {[%clk 0:02:28.5]}
8... Nxd5 {[%clk 0:02:49.8]} 9. Bc4 {[%clk 0:02:27.3]} 9... Be6 {[%clk 0:02:47]}
10. Bb3 {[%clk 0:02:08.2]} 10... Na5 {[%clk 0:02:44.2]} 11. Ng5 {[%clk
0:02:03.6]} 11... Nxe3 {[%clk 0:02:37.1]} 12. fxe3 {[%clk 0:01:49.8]} 12... Bxb3
{[%clk 0:02:18.3]} 13. axb3 {[%clk 0:01:49.7]} 13... e6 {[%clk 0:01:49.8]} 14.
Nxf7 {[%clk 0:01:21.5]} 14... Kxf7 {[%clk 0:01:27.3]} 15. Qh5+ {[%clk
0:01:21.7]} 15... Kg8 {[%clk 0:01:10.6]} 16. O-O {[%clk 0:01:21.9]} 16... Qd7
{[%clk 0:01:07.4]} 17. Rxa5 {[%clk 0:01:16.7]} 17... Bd6 {[%clk 0:00:53]} 18.
Ne4 {[%clk 0:01:08.7]} 18... Rf8 {[%clk 0:00:48.2]} 19. Rxf8+ {[%clk 0:01:04.5]}
19... Bxf8 {[%clk 0:00:46.1]} 20. Re5 {[%clk 0:00:48.7]} 20... Qc6 {[%clk
0:00:11.6]} 21. h3 {[%clk 0:00:42.8]} 21... Qc1+ {[%clk 0:00:08.5]} 22. Kh2
{[%clk 0:00:43.2]} 22... g6 {[%clk 0:00:05]} 23. Qg4 {[%clk 0:00:39.6]} 1-0

[Event "Early-Titled-Tuesday-Blitz-September-12-2023"]
[Site "Chess.com"]
[Date "2023.09.12"]
[Round "4"]
[White "jeetjain"]
[Black "nihalsarin"]
[Result "0-1"]
[WhiteElo "2576"]
[BlackElo "3109"]
[TimeControl "180+1"]
[EndTime "8:37:20 PDT"]
[Termination "nihalsarin won by resignation"]

1. Nf3 {[%clk 0:02:56.9]} 1... a6 {[%clk 0:03:00.9]} 2. b3 {[%clk 0:02:56.5]}
2... b5 {[%clk 0:03:01.4]} 3. Bb2 {[%clk 0:02:55.9]} 3... Bb7 {[%clk 0:03:02.2]}
4. g3 {[%clk 0:02:54.8]} 4... Nf6 {[%clk 0:03:02.8]} 5. Bg2 {[%clk 0:02:55.2]}
5... e6 {[%clk 0:03:03.6]} 6. O-O {[%clk 0:02:55.6]} 6... Be7 {[%clk 0:03:04.4]}
7. d3 {[%clk 0:02:52.1]} 7... O-O {[%clk 0:03:04.9]} 8. e4 {[%clk 0:02:51.7]}
8... d5 {[%clk 0:03:05.6]} 9. exd5 {[%clk 0:02:51.2]} 9... Nxd5 {[%clk
0:03:06.5]} 10. Nbd2 {[%clk 0:02:47.2]} 10... c5 {[%clk 0:03:06.9]} 11. d4
{[%clk 0:02:43.7]} 11... Nd7 {[%clk 0:03:07]} 12. c4 {[%clk 0:02:41.8]} 12...
bxc4 {[%clk 0:03:07.1]} 13. Nxc4 {[%clk 0:02:42]} 13... a5 {[%clk 0:03:07.8]}
14. Nfe5 {[%clk 0:02:35.1]} 14... a4 {[%clk 0:03:08]} 15. bxa4 {[%clk
0:02:22.4]} 15... cxd4 {[%clk 0:03:06.3]} 16. Bxd4 {[%clk 0:02:12.3]} 16... Nxe5
{[%clk 0:03:06]} 17. Nxe5 {[%clk 0:02:07.6]} 17... Bf6 {[%clk 0:03:06.6]} 18.
Nf3 {[%clk 0:01:58.5]} 18... Bxd4 {[%clk 0:03:06.2]} 19. Qxd4 {[%clk 0:01:56.4]}
19... Qa5 {[%clk 0:03:06.8]} 20. Rab1 {[%clk 0:01:35.2]} 20... Nc3 {[%clk
0:03:06.8]} 21. Rb2 {[%clk 0:01:21.4]} 21... Ba6 {[%clk 0:03:07.5]} 22. Re1
{[%clk 0:01:17.9]} 22... Nxa4 {[%clk 0:03:08]} 23. Rbb1 {[%clk 0:01:16.5]} 23...
Rfd8 {[%clk 0:03:07.6]} 24. Qb4 {[%clk 0:01:10.6]} 24... Qxb4 {[%clk 0:03:07.2]}
25. Rxb4 {[%clk 0:01:11.5]} 25... Nc5 {[%clk 0:03:07.9]} 26. Ne5 {[%clk
0:01:07.3]} 26... Rac8 {[%clk 0:03:08.6]} 27. Ra1 {[%clk 0:01:02.9]} 27... f6
{[%clk 0:03:07.8]} 28. Nc6 {[%clk 0:01:01.9]} 28... Rd7 {[%clk 0:03:08.5]} 29.
a4 {[%clk 0:00:59.8]} 29... Rdc7 {[%clk 0:03:08.8]} 30. Nd4 {[%clk 0:00:57.9]}
30... Kf7 {[%clk 0:03:08.8]} 31. a5 {[%clk 0:00:56.1]} 31... e5 {[%clk
0:03:08.2]} 32. Nf5 {[%clk 0:00:55.5]} 32... Rd8 {[%clk 0:03:08]} 33. Rb6 {[%clk
0:00:53.7]} 33... g6 {[%clk 0:03:08.6]} 34. Nd6+ {[%clk 0:00:52.7]} 34... Ke7
{[%clk 0:03:09.2]} 35. Nb5 {[%clk 0:00:53.2]} 35... Bxb5 {[%clk 0:03:08.8]} 36.
Rxb5 {[%clk 0:00:53.4]} 36... Na6 {[%clk 0:03:09.4]} 37. Rb6 {[%clk 0:00:52.5]}
37... Rd6 {[%clk 0:03:10]} 38. Bf1 {[%clk 0:00:50.4]} 38... Nc5 {[%clk
0:03:09.4]} 39. Rxd6 {[%clk 0:00:45.8]} 39... Kxd6 {[%clk 0:03:10.3]} 40. a6
{[%clk 0:00:46.7]} 40... Ra7 {[%clk 0:03:11]} 41. Rb1 {[%clk 0:00:45.7]} 41...
Kc6 {[%clk 0:03:10.5]} 42. Rc1 {[%clk 0:00:45.4]} 42... e4 {[%clk 0:03:10.1]}
43. g4 {[%clk 0:00:42.6]} 43... f5 {[%clk 0:03:10.4]} 44. gxf5 {[%clk
0:00:42.9]} 44... gxf5 {[%clk 0:03:11.3]} 45. Kg2 {[%clk 0:00:43.8]} 45... Rg7+
{[%clk 0:03:11.6]} 46. Kh3 {[%clk 0:00:42.5]} 46... Kd5 {[%clk 0:03:08.6]} 47.
Ra1 {[%clk 0:00:41.1]} 47... Ne6 {[%clk 0:03:08.9]} 48. Ra5+ {[%clk 0:00:36.7]}
48... Kd4 {[%clk 0:03:08]} 49. Rxf5 {[%clk 0:00:35.8]} 49... Ng5+ {[%clk
0:03:08.7]} 50. Kh4 {[%clk 0:00:31.6]} 50... Nf3+ {[%clk 0:03:09.3]} 51. Kh5
{[%clk 0:00:32.2]} 51... Nxh2 {[%clk 0:03:08.8]} 52. Bb5 {[%clk 0:00:27.3]}
52... Ra7 {[%clk 0:02:57.5]} 53. Kh6 {[%clk 0:00:20.4]} 53... Nf3 {[%clk
0:02:57.4]} 54. Rf8 {[%clk 0:00:18.8]} 54... Ne5 {[%clk 0:02:54.3]} 55. Rg8
{[%clk 0:00:17.4]} 55... Kc5 {[%clk 0:02:50.1]} 56. Be2 {[%clk 0:00:15.6]} 56...
Nd3 {[%clk 0:02:47.1]} 57. f3 {[%clk 0:00:11.2]} 57... Rxa6+ {[%clk 0:02:42.1]}
58. Kxh7 {[%clk 0:00:10.5]} 58... Ra2 {[%clk 0:02:40.4]} 59. Bxd3 {[%clk
0:00:09.1]} 59... exd3 {[%clk 0:02:41.3]} 60. Rd8 {[%clk 0:00:09.8]} 60... d2
{[%clk 0:02:30.6]} 61. f4 {[%clk 0:00:10]} 61... Kc6 {[%clk 0:02:31.2]} 62. f5
{[%clk 0:00:10]} 62... Ra7+ {[%clk 0:02:31.1]} 63. Kg6 {[%clk 0:00:09.5]} 63...
Rd7 {[%clk 0:02:32]} 64. Rc8+ {[%clk 0:00:05.5]} 64... Kb7 {[%clk 0:02:31.8]}
0-1

[Event "Early-Titled-Tuesday-Blitz-September-12-2023"]
[Site "Chess.com"]
[Date "2023.09.12"]
[Round "4"]
[White "Gauravthegm"]
[Black "El_Matador12"]
[Result "0-1"]
[WhiteElo "2413"]
[BlackElo "2635"]
[TimeControl "180+1"]
[EndTime "8:37:20 PDT"]
[Termination "El_Matador12 won on time"]

1. e4 {[%clk 0:03:00.9]} 1... c6 {[%clk 0:02:59.5]} 2. d4 {[%clk 0:02:59.5]}
2... d5 {[%clk 0:02:59.8]} 3. exd5 {[%clk 0:03:00.4]} 3... cxd5 {[%clk
0:03:00.7]} 4. Bd3 {[%clk 0:02:59.7]} 4... Nc6 {[%clk 0:02:59.8]} 5. c3 {[%clk
0:02:59.8]} 5... Nf6 {[%clk 0:02:59.1]} 6. Bf4 {[%clk 0:02:59.7]} 6... Bg4
{[%clk 0:02:58.8]} 7. Qb3 {[%clk 0:02:59.6]} 7... Qd7 {[%clk 0:02:59.1]} 8. Nd2
{[%clk 0:03:00]} 8... e6 {[%clk 0:02:59.5]} 9. Ngf3 {[%clk 0:03:00.3]} 9... Bd6
{[%clk 0:02:59.4]} 10. Bxd6 {[%clk 0:03:00.3]} 10... Qxd6 {[%clk 0:03:00.3]} 11.
O-O {[%clk 0:03:00.3]} 11... O-O {[%clk 0:03:00.4]} 12. Rae1 {[%clk 0:02:59.8]}
12... Rab8 {[%clk 0:02:57.1]} 13. Ne5 {[%clk 0:02:54.5]} 13... Bh5 {[%clk
0:02:56.2]} 14. Qc2 {[%clk 0:02:50.9]} 14... b5 {[%clk 0:02:52.4]} 15. a3 {[%clk
0:02:47.9]} 15... a5 {[%clk 0:02:51.9]} 16. Re3 {[%clk 0:02:38.1]} 16... b4
{[%clk 0:02:50.2]} 17. axb4 {[%clk 0:02:38.6]} 17... axb4 {[%clk 0:02:50.2]} 18.
f4 {[%clk 0:02:27.7]} 18... Rfc8 {[%clk 0:02:43.1]} 19. Nxc6 {[%clk 0:02:14.8]}
19... Qxc6 {[%clk 0:02:41.1]} 20. f5 {[%clk 0:02:01.1]} 20... bxc3 {[%clk
0:02:34.5]} 21. bxc3 {[%clk 0:02:00.9]} 21... exf5 {[%clk 0:02:07.6]} 22. Bxf5
{[%clk 0:01:58.5]} 22... Bg6 {[%clk 0:02:06.7]} 23. Bxg6 {[%clk 0:01:53.4]}
23... hxg6 {[%clk 0:02:07.6]} 24. Nf3 {[%clk 0:01:37.6]} 24... Qb6 {[%clk
0:02:00.3]} 25. Qd3 {[%clk 0:01:17.8]} 25... Ne4 {[%clk 0:01:45]} 26. Qc2 {[%clk
0:00:59.4]} 26... f5 {[%clk 0:01:40.2]} 27. Rc1 {[%clk 0:00:39.1]} 27... Rc7
{[%clk 0:01:22.2]} 28. Ne5 {[%clk 0:00:39]} 28... Rbc8 {[%clk 0:01:19.5]} 29.
Qa2 {[%clk 0:00:32.5]} 29... Qxd4 {[%clk 0:01:15.5]} 30. Re1 {[%clk 0:00:05.7]}
30... Rxc3 {[%clk 0:01:11.6]} 0-1

[Event "Early-Titled-Tuesday-Blitz-September-12-2023"]
[Site "Chess.com"]
[Date "2023.09.12"]
[Round "4"]
[White "nitpicker"]
[Black "younix2022"]
[Result "0-1"]
[WhiteElo "2276"]
[BlackElo "2023"]
[TimeControl "180+1"]
[EndTime "8:37:22 PDT"]
[Termination "younix2022 won on time"]

1. d4 {[%clk 0:03:00.9]} 1... Nf6 {[%clk 0:02:59.7]} 2. c4 {[%clk 0:03:00.7]}
2... c5 {[%clk 0:02:59.9]} 3. d5 {[%clk 0:03:00.3]} 3... b5 {[%clk 0:03:00.6]}
4. cxb5 {[%clk 0:03:00.5]} 4... a6 {[%clk 0:03:01.2]} 5. e3 {[%clk 0:03:01]}
5... axb5 {[%clk 0:03:01]} 6. Bxb5 {[%clk 0:03:00.8]} 6... Qa5+ {[%clk
0:03:01.1]} 7. Nc3 {[%clk 0:03:01.2]} 7... Na6 {[%clk 0:02:58.4]} 8. Ne2 {[%clk
0:02:51.8]} 8... g6 {[%clk 0:02:56.5]} 9. a4 {[%clk 0:02:45.6]} 9... Bg7 {[%clk
0:02:56.3]} 10. O-O {[%clk 0:02:45.2]} 10... O-O {[%clk 0:02:56.7]} 11. e4
{[%clk 0:02:39]} 11... Nc7 {[%clk 0:02:56.6]} 12. Bd3 {[%clk 0:02:30.1]} 12...
d6 {[%clk 0:02:55.2]} 13. h3 {[%clk 0:02:26.5]} 13... Na6 {[%clk 0:02:53]} 14.
Ra3 {[%clk 0:02:23.3]} 14... Nb4 {[%clk 0:02:53]} 15. Bb1 {[%clk 0:02:16]} 15...
Ba6 {[%clk 0:02:52.5]} 16. Bg5 {[%clk 0:02:00.6]} 16... h6 {[%clk 0:02:50]} 17.
Bh4 {[%clk 0:02:00]} 17... g5 {[%clk 0:02:50.4]} 18. Bg3 {[%clk 0:02:00]} 18...
Nh5 {[%clk 0:02:48.7]} 19. Bh2 {[%clk 0:01:49]} 19... Nf4 {[%clk 0:02:42.5]} 20.
Nxf4 {[%clk 0:01:37.6]} 20... gxf4 {[%clk 0:02:43]} 21. Re1 {[%clk 0:01:35.1]}
21... Be5 {[%clk 0:02:10.7]} 22. Qg4+ {[%clk 0:01:34.1]} 22... Kh8 {[%clk
0:02:09.9]} 23. Bxf4 {[%clk 0:01:31.6]} 23... Rg8 {[%clk 0:02:00.3]} 24. Bxe5+
{[%clk 0:01:27.1]} 24... dxe5 {[%clk 0:01:58.7]} 25. Qh5 {[%clk 0:01:26.6]}
25... Rg6 {[%clk 0:01:54]} 26. Qxe5+ {[%clk 0:01:25.8]} 26... Kh7 {[%clk
0:01:52.6]} 27. Qxe7 {[%clk 0:01:20.1]} 27... Rag8 {[%clk 0:01:49.4]} 28. e5
{[%clk 0:01:15.7]} 28... Nd3 {[%clk 0:01:48.4]} 29. Bxd3 {[%clk 0:01:02.3]}
29... Bxd3 {[%clk 0:01:47.9]} 30. g4 {[%clk 0:00:51.8]} 30... Qb4 {[%clk
0:01:45.3]} 31. Qxf7+ {[%clk 0:00:34]} 31... R8g7 {[%clk 0:01:44.1]} 32. Qf3
{[%clk 0:00:33.5]} 32... Rxg4+ {[%clk 0:01:34.3]} 33. Kh1 {[%clk 0:00:33.5]}
33... Rf4 {[%clk 0:01:29.5]} 34. Qxd3+ {[%clk 0:00:32.7]} 34... Kh8 {[%clk
0:01:27]} 35. Qb5 {[%clk 0:00:26.2]} 35... Qd4 {[%clk 0:01:22.6]} 36. Qe8+
{[%clk 0:00:12.1]} 36... Kh7 {[%clk 0:01:21.6]} 37. Re2 {[%clk 0:00:10.2]} 37...
Rxf2 {[%clk 0:01:12.6]} 38. Ra1 {[%clk 0:00:05.6]} 38... Rxe2 {[%clk 0:01:10.6]}
39. Nxe2 {[%clk 0:00:05]} 39... Qe4+ {[%clk 0:01:10.8]} 0-1

[Event "Early-Titled-Tuesday-Blitz-September-12-2023"]
[Site "Chess.com"]
[Date "2023.09.12"]
[Round "4"]
[White "MKlose11"]
[Black "BJthechessgod"]
[Result "1-0"]
[WhiteElo "2617"]
[BlackElo "2403"]
[TimeControl "180+1"]
[EndTime "8:37:23 PDT"]
[Termination "MKlose11 won by resignation"]

1. e4 {[%clk 0:02:57.5]} 1... c5 {[%clk 0:01:44.8]} 2. Nc3 {[%clk 0:02:56.2]}
2... e6 {[%clk 0:01:45.4]} 3. g3 {[%clk 0:02:56.4]} 3... Nc6 {[%clk 0:01:45.7]}
4. Bg2 {[%clk 0:02:56.7]} 4... Nf6 {[%clk 0:01:45.5]} 5. d3 {[%clk 0:02:56.3]}
5... Be7 {[%clk 0:01:46]} 6. h3 {[%clk 0:02:56]} 6... O-O {[%clk 0:01:46.6]} 7.
Nge2 {[%clk 0:02:54.7]} 7... d5 {[%clk 0:01:47.3]} 8. O-O {[%clk 0:02:52.7]}
8... d4 {[%clk 0:01:42.7]} 9. Nb1 {[%clk 0:02:47.6]} 9... e5 {[%clk 0:01:42.7]}
10. f4 {[%clk 0:02:41.7]} 10... b5 {[%clk 0:01:37.4]} 11. a4 {[%clk 0:02:41]}
11... Rb8 {[%clk 0:01:11.5]} 12. axb5 {[%clk 0:02:39.7]} 12... Rxb5 {[%clk
0:01:12.4]} 13. Na3 {[%clk 0:02:37.9]} 13... Rb8 {[%clk 0:01:11.9]} 14. Nc4
{[%clk 0:02:36.6]} 14... Nd7 {[%clk 0:01:11.7]} 15. fxe5 {[%clk 0:02:28.3]}
15... Ndxe5 {[%clk 0:01:10.1]} 16. Nxe5 {[%clk 0:02:22.3]} 16... Nxe5 {[%clk
0:01:11]} 17. Nf4 {[%clk 0:02:22.8]} 17... Nc6 {[%clk 0:00:55.5]} 18. Nd5 {[%clk
0:02:21.4]} 18... Bd6 {[%clk 0:00:54.8]} 19. Bf4 {[%clk 0:02:17.8]} 19... Be6
{[%clk 0:00:47.2]} 20. b3 {[%clk 0:02:13]} 20... Bxd5 {[%clk 0:00:33.8]} 21.
exd5 {[%clk 0:02:12.6]} 21... Bxf4 {[%clk 0:00:34.7]} 22. Rxf4 {[%clk
0:02:08.4]} 22... Nb4 {[%clk 0:00:35]} 23. Rxa7 {[%clk 0:02:06.4]} 23... Nxd5
{[%clk 0:00:34.3]} 24. Bxd5 {[%clk 0:01:54.7]} 24... Qxd5 {[%clk 0:00:35.2]} 25.
Qf3 {[%clk 0:01:53.6]} 25... Qxf3 {[%clk 0:00:26.1]} 26. Rxf3 {[%clk 0:01:54.5]}
26... f6 {[%clk 0:00:21.7]} 27. Rf5 {[%clk 0:01:51]} 27... Rfc8 {[%clk
0:00:19.6]} 28. Rd5 {[%clk 0:01:50.6]} 28... Ra8 {[%clk 0:00:18.2]} 29. Rdd7
{[%clk 0:01:45.1]} 29... Rxa7 {[%clk 0:00:18.2]} 30. Rxa7 {[%clk 0:01:46]} 30...
Re8 {[%clk 0:00:15.2]} 31. Kf2 {[%clk 0:01:44.9]} 31... Re5 {[%clk 0:00:15.7]}
32. Rd7 {[%clk 0:01:42.3]} 32... h5 {[%clk 0:00:15.5]} 33. h4 {[%clk 0:01:41.7]}
33... Kh7 {[%clk 0:00:16]} 34. Rb7 {[%clk 0:01:40.7]} 34... Kh6 {[%clk 0:00:15]}
35. b4 {[%clk 0:01:40.9]} 35... cxb4 {[%clk 0:00:14.8]} 36. Rxb4 {[%clk
0:01:41.8]} 36... Rc5 {[%clk 0:00:15.3]} 37. Rc4 {[%clk 0:01:34.5]} 37... Rxc4
{[%clk 0:00:08.7]} 38. dxc4 {[%clk 0:01:34.6]} 38... Kg6 {[%clk 0:00:09.6]} 39.
Ke2 {[%clk 0:01:32.2]} 39... Kf5 {[%clk 0:00:10]} 40. Kd3 {[%clk 0:01:32.7]}
40... Ke5 {[%clk 0:00:10.6]} 41. c5 {[%clk 0:01:33.3]} 41... Kd5 {[%clk
0:00:10.9]} 42. c6 {[%clk 0:01:33.7]} 42... Kxc6 {[%clk 0:00:11.4]} 43. Kxd4
{[%clk 0:01:34.6]} 43... g5 {[%clk 0:00:09.3]} 44. Ke4 {[%clk 0:01:31.8]} 44...
gxh4 {[%clk 0:00:03.9]} 45. gxh4 {[%clk 0:01:31.3]} 45... Kc5 {[%clk 0:00:04.2]}
46. Kf5 {[%clk 0:01:31.4]} 46... Kd4 {[%clk 0:00:04.7]} 47. Kxf6 {[%clk
0:01:31.9]} 47... Kc3 {[%clk 0:00:05.6]} 48. Kg5 {[%clk 0:01:31.9]} 48... Kxc2
{[%clk 0:00:06.5]} 49. Kxh5 {[%clk 0:01:32.8]} 49... Kd3 {[%clk 0:00:07.4]} 50.
Kg6 {[%clk 0:01:33.2]} 50... Ke4 {[%clk 0:00:08.3]} 51. h5 {[%clk 0:01:33.6]}
51... Ke5 {[%clk 0:00:08.7]} 52. Kg7 {[%clk 0:01:33.1]} 52... Ke6 {[%clk
0:00:09.6]} 53. h6 {[%clk 0:01:34]} 1-0

[Event "Early-Titled-Tuesday-Blitz-September-12-2023"]
[Site "Chess.com"]
[Date "2023.09.12"]
[Round "4"]
[White "ozates"]
[Black "Witik"]
[Result "1-0"]
[WhiteElo "2560"]
[BlackElo "2734"]
[TimeControl "180+1"]
[EndTime "8:37:24 PDT"]
[Termination "ozates won on time"]

1. e4 {[%clk 0:02:58.3]} 1... c6 {[%clk 0:03:00.2]} 2. d4 {[%clk 0:02:56.9]}
2... d5 {[%clk 0:03:00.7]} 3. exd5 {[%clk 0:02:57.8]} 3... cxd5 {[%clk 0:03:01]}
4. c4 {[%clk 0:02:58.7]} 4... Nf6 {[%clk 0:03:01.1]} 5. Nc3 {[%clk 0:02:59.4]}
5... e6 {[%clk 0:03:01.2]} 6. Nf3 {[%clk 0:02:59.4]} 6... Be7 {[%clk 0:02:49.7]}
7. Bd3 {[%clk 0:02:55.6]} 7... dxc4 {[%clk 0:02:49.7]} 8. Bxc4 {[%clk
0:02:56.5]} 8... Nc6 {[%clk 0:02:50.2]} 9. O-O {[%clk 0:02:57.1]} 9... O-O
{[%clk 0:02:49.6]} 10. Bg5 {[%clk 0:02:53.1]} 10... b6 {[%clk 0:02:47.8]} 11. a3
{[%clk 0:02:50.9]} 11... Bb7 {[%clk 0:02:44.4]} 12. Qd3 {[%clk 0:02:51.1]} 12...
a6 {[%clk 0:02:16.9]} 13. Rad1 {[%clk 0:02:46.3]} 13... b5 {[%clk 0:02:14]} 14.
Ba2 {[%clk 0:02:41.4]} 14... b4 {[%clk 0:02:14.1]} 15. Bb1 {[%clk 0:02:35]}
15... g6 {[%clk 0:02:08.8]} 16. Ne2 {[%clk 0:02:13.3]} 16... Nd5 {[%clk
0:01:56.4]} 17. Bh6 {[%clk 0:02:13.4]} 17... Re8 {[%clk 0:01:56.5]} 18. Rfe1
{[%clk 0:02:04.3]} 18... bxa3 {[%clk 0:01:53.2]} 19. bxa3 {[%clk 0:02:04.1]}
19... Qa5 {[%clk 0:01:53.5]} 20. h4 {[%clk 0:02:00.7]} 20... Qxa3 {[%clk
0:01:50.5]} 21. Qe4 {[%clk 0:02:00.6]} 21... Rab8 {[%clk 0:01:39.3]} 22. Nf4
{[%clk 0:01:53.4]} 22... Nf6 {[%clk 0:01:27.3]} 23. Qe2 {[%clk 0:01:50.2]} 23...
Ng4 {[%clk 0:01:11.3]} 24. Bg5 {[%clk 0:01:47.4]} 24... Bb4 {[%clk 0:01:11.3]}
25. Ne5 {[%clk 0:01:36.6]} 25... Ngxe5 {[%clk 0:00:41.5]} 26. dxe5 {[%clk
0:01:36.3]} 26... Bxe1 {[%clk 0:00:38.4]} 27. Rxe1 {[%clk 0:01:33.6]} 27... Nd4
{[%clk 0:00:33.5]} 28. Qg4 {[%clk 0:01:30.2]} 28... Bf3 {[%clk 0:00:19.4]} 29.
Qg3 {[%clk 0:01:07.5]} 29... Rxb1 {[%clk 0:00:18.8]} 30. Rxb1 {[%clk 0:01:02.5]}
30... Ne2+ {[%clk 0:00:18.9]} 31. Nxe2 {[%clk 0:01:02.8]} 31... Qa2 {[%clk
0:00:05.1]} 32. Nc3 {[%clk 0:00:59.1]} 1-0

[Event "Early-Titled-Tuesday-Blitz-September-12-2023"]
[Site "Chess.com"]
[Date "2023.09.12"]
[Round "4"]
[White "Artemiki"]
[Black "amylazy"]
[Result "0-1"]
[WhiteElo "2141"]
[BlackElo "2461"]
[TimeControl "180+1"]
[EndTime "8:37:24 PDT"]
[Termination "amylazy won on time"]

1. e4 {[%clk 0:03:00.9]} 1... c5 {[%clk 0:02:56]} 2. Nf3 {[%clk 0:03:01.1]} 2...
e6 {[%clk 0:02:56.1]} 3. d4 {[%clk 0:03:01.5]} 3... cxd4 {[%clk 0:02:56.6]} 4.
Nxd4 {[%clk 0:03:02.4]} 4... a6 {[%clk 0:02:57]} 5. Nc3 {[%clk 0:03:02.3]} 5...
Qc7 {[%clk 0:02:56.9]} 6. Bd3 {[%clk 0:02:55.9]} 6... Nf6 {[%clk 0:02:44.7]} 7.
Qe2 {[%clk 0:02:55.9]} 7... d6 {[%clk 0:02:43]} 8. O-O {[%clk 0:02:54.3]} 8...
Nbd7 {[%clk 0:02:43.2]} 9. f4 {[%clk 0:02:51.8]} 9... Be7 {[%clk 0:02:43.5]} 10.
Kh1 {[%clk 0:02:47.6]} 10... O-O {[%clk 0:02:43.1]} 11. f5 {[%clk 0:02:46.7]}
11... Nc5 {[%clk 0:02:42.3]} 12. fxe6 {[%clk 0:02:37.8]} 12... fxe6 {[%clk
0:02:40.9]} 13. Be3 {[%clk 0:02:12.1]} 13... b5 {[%clk 0:02:37.7]} 14. a3 {[%clk
0:01:57.3]} 14... Re8 {[%clk 0:02:18.2]} 15. Rac1 {[%clk 0:01:52]} 15... Bb7
{[%clk 0:02:18.1]} 16. Bd2 {[%clk 0:01:11.5]} 16... Qb6 {[%clk 0:01:38.7]} 17.
Be3 {[%clk 0:01:01.2]} 17... b4 {[%clk 0:01:34.1]} 18. axb4 {[%clk 0:00:32]}
18... Qxb4 {[%clk 0:01:16.2]} 19. Bc4 {[%clk 0:00:24.2]} 19... d5 {[%clk
0:01:14.3]} 20. exd5 {[%clk 0:00:23.1]} 20... exd5 {[%clk 0:01:14.4]} 21. Bd3
{[%clk 0:00:14.3]} 21... Qxb2 {[%clk 0:01:11.5]} 22. Qd2 {[%clk 0:00:08]} 22...
Nxd3 {[%clk 0:01:08.9]} 23. cxd3 {[%clk 0:00:05.4]} 23... Qxd2 {[%clk
0:01:08.2]} 24. Bxd2 {[%clk 0:00:06.3]} 24... Bc5 {[%clk 0:01:00.8]} 25. Nb3
{[%clk 0:00:06.7]} 25... Bb4 {[%clk 0:00:59.5]} 26. Rf2 {[%clk 0:00:04.4]} 26...
a5 {[%clk 0:00:59]} 27. Na4 {[%clk 0:00:04]} 27... Ng4 {[%clk 0:00:51.9]} 0-1